[Event "ETCC Women 2013"]
[Site "Warsaw"]
[Date "2013.11.10"]
[Round "3"]
[White "Sikorova, Olga"]
[Black "Bhatia, Kanwal K"]
[Result "1-0"]
[ECO "C28"]
[WhiteElo "2278"]
[BlackElo "2039"]
[PlyCount "135"]
[EventDate "2013.??.??"]
[EventCountry "POL"]
[WhiteTeam "Czech Republic"]
[BlackTeam "England"]
[WhiteTeamCountry "CZE"]
[BlackTeamCountry "ENG"]
[TimeControl "40/5400+30:1800+30"]

1. e4 {[%emt 0:00:00]} e5 {[%emt 0:00:00]} 2. Bc4 {[%emt 0:00:00]} Nc6 {[%emt
0:00:00]} 3. Nc3 {[%emt 0:00:22]} Nf6 {[%emt 0:00:13]} 4. d3 {[%emt 0:00:23]}
Na5 {[%emt 0:01:21]} 5. Nge2 {[%emt 0:01:07]} Nxc4 {[%emt 0:00:39]} 6. dxc4 {
[%emt 0:00:04]} c6 {[%emt 0:00:29]} 7. O-O {[%emt 0:01:42]} Be7 {[%emt 0:00:32]
} 8. Qd3 {[%emt 0:04:35]} d6 {[%emt 0:02:54]} 9. Bg5 {[%emt 0:07:02]} O-O {
[%emt 0:10:33]} 10. Rad1 {[%emt 0:06:47]} Ne8 {[%emt 0:03:56]} 11. Bxe7 {[%emt
0:04:38]} Qxe7 {[%emt 0:00:06]} 12. Ng3 {[%emt 0:08:22]} g6 {[%emt 0:03:10]}
13. f4 {[%emt 0:09:01]} exf4 {[%emt 0:05:09]} 14. Rxf4 {[%emt 0:01:14]} Be6 {
[%emt 0:09:50]} 15. b3 {[%emt 0:04:55]} Rd8 {[%emt 0:02:21]} 16. Qd4 {[%emt 0:
06:21]} Qg5 {[%emt 0:07:29]} 17. Nce2 {[%emt 0:06:06]} b6 {[%emt 0:07:07]} 18.
Kh1 {[%emt 0:03:32]} Ng7 {[%emt 0:02:32]} 19. Qd2 {[%emt 0:07:15]} h6 {[%emt 0:
13:50]} 20. Nd4 {[%emt 0:01:04]} Bg4 {[%emt 0:06:26]} 21. Rdf1 {[%emt 0:06:58]}
c5 {[%emt 0:04:29]} 22. Nb5 {[%emt 0:02:10]} Ne6 {[%emt 0:05:57]} 23. R4f2 {
[%emt 0:00:46]} a6 {[%emt 0:02:19]} 24. Nc3 {[%emt 0:00:20]} Qxd2 {[%emt 0:03:
46]} 25. Rxd2 {[%emt 0:00:04]} Nd4 {[%emt 0:00:41]} 26. Nd5 {[%emt 0:00:25]}
Be6 {[%emt 0:01:34]} 27. Nxb6 {[%emt 0:01:03]} Kg7 {[%emt 0:00:03]} 28. c3 {
[%emt 0:00:47]} Nc6 {[%emt 0:00:29]} 29. Rfd1 {[%emt 0:00:51]} Bg4 {[%emt 0:01:
25]} 30. Rf1 {[%emt 0:01:21]} h5 {[%emt 0:03:20]} 31. Kg1 {[%emt 0:04:35]} h4 {
[%emt 0:00:35]} 32. Nh1 {[%emt 0:00:47]} Rfe8 {[%emt 0:00:30]} 33. Nf2 {[%emt
0:01:01]} Bh5 {[%emt 0:00:27]} 34. Nd5 {[%emt 0:01:45]} g5 {[%emt 0:00:46]} 35.
h3 a5 36. a3 {[%emt 0:07:48]} Ne5 {[%emt 0:01:40]} 37. Nc7 {[%emt 0:00:17]} Re7
{[%emt 0:00:16]} 38. Nb5 {[%emt 0:00:40]} Re6 {[%emt 0:00:39]} 39. a4 {[%emt 0:
01:11]} f6 {[%emt 0:00:25]} 40. Re1 {[%emt 0:01:43]} Rd7 {[%emt 0:00:45]} 41.
Kf1 {[%emt 0:06:41]} Kf7 {[%emt 0:01:37]} 42. Rb2 {[%emt 0:01:22]} Ke8 {[%emt
0:03:18]} 43. Na3 {[%emt 0:01:18]} Rb7 {[%emt 0:00:57]} 44. Reb1 {[%emt 0:04:
54]} Nc6 {[%emt 0:01:36]} 45. Nc2 {[%emt 0:01:46]} Bg6 {[%emt 0:05:48]} 46. b4
{[%emt 0:06:30]} Bxe4 {[%emt 0:04:10]} 47. b5 {[%emt 0:07:20]} Nd8 {[%emt 0:02:
27]} 48. Re1 {[%emt 0:01:17]} Bg6 {[%emt 0:02:19]} 49. Rxe6+ {[%emt 0:02:19]}
Nxe6 {[%emt 0:00:05]} 50. Na1 {[%emt 0:00:06]} Bf7 {[%emt 0:08:04]} 51. Nb3 {
[%emt 0:00:19]} Nd8 {[%emt 0:00:27]} 52. Ne4 {[%emt 0:01:06]} Bxc4+ {[%emt 0:
03:11]} 53. Kf2 {[%emt 0:00:08]} Rb6 {[%emt 0:00:15]} 54. Nxa5 {[%emt 0:00:22]}
Bf7 {[%emt 0:00:50]} 55. Nxf6+ {[%emt 0:00:09]} Ke7 {[%emt 0:00:25]} 56. Ne4 {
[%emt 0:00:01]} Bd5 {[%emt 0:02:09]} 57. Nxg5 Rb8 58. c4 {[%emt 0:02:05]} Bg8 {
[%emt 0:01:16]} 59. Re2+ {[%emt 0:00:25]} Kd7 {[%emt 0:00:34]} 60. Ne4 {[%emt
0:00:26]} Ra8 {[%emt 0:01:05]} 61. Nf6+ {[%emt 0:01:08]} Kc8 {[%emt 0:00:08]}
62. Nc6 {[%emt 0:00:43]} Bf7 {[%emt 0:01:00]} 63. Re7 {[%emt 0:00:33]} Bg6 {
[%emt 0:00:31]} 64. Nd5 {[%emt 0:00:17]} Nxc6 {[%emt 0:00:17]} 65. bxc6 {[%emt
0:00:17]} Ra6 {[%emt 0:00:29]} 66. Rc7+ {[%emt 0:00:25]} Kd8 {[%emt 0:00:19]}
67. Rd7+ {[%emt 0:00:09]} Kc8 {[%emt 0:00:31]} 68. Ne7+ {[%emt 0:00:07]} 1-0

[Event "ETCC Women 2013"]
[Site "Warsaw"]
[Date "2013.11.10"]
[Round "3"]
[White "Socko, Monika"]
[Black "Bulmaga, Irina"]
[Result "1-0"]
[ECO "E32"]
[WhiteElo "2431"]
[BlackElo "2399"]
[PlyCount "107"]
[EventDate "2013.??.??"]
[EventCountry "POL"]
[WhiteTeam "Poland"]
[BlackTeam "Romania"]
[WhiteTeamCountry "POL"]
[BlackTeamCountry "ROU"]
[TimeControl "40/5400+30:1800+30"]

1. d4 {[%emt 0:00:00]} Nf6 {[%emt 0:00:00]} 2. c4 {[%emt 0:00:00]} e6 {[%emt 0:
00:00]} 3. Nc3 {[%emt 0:00:00]} Bb4 {[%emt 0:00:00]} 4. Qc2 {[%emt 0:00:00]}
O-O {[%emt 0:00:04]} 5. a3 {[%emt 0:00:00]} Bxc3+ {[%emt 0:00:06]} 6. Qxc3 {
[%emt 0:00:00]} b6 {[%emt 0:00:28]} 7. Bg5 {[%emt 0:00:20]} Bb7 {[%emt 0:00:14]
} 8. e3 {[%emt 0:00:35]} d6 {[%emt 0:00:52]} 9. Ne2 {[%emt 0:00:29]} Nbd7 {
[%emt 0:01:26]} 10. Qd3 {[%emt 0:00:22]} Ba6 {[%emt 0:04:18]} 11. Nc3 {[%emt 0:
00:17]} d5 {[%emt 0:02:42]} 12. Qc2 {[%emt 0:00:21]} dxc4 {[%emt 0:03:47]} 13.
Qa4 {[%emt 0:00:13]} Bb7 {[%emt 0:05:03]} 14. Qxc4 {[%emt 0:00:12]} c5 {[%emt
0:01:44]} 15. f3 {[%emt 0:01:20]} cxd4 {[%emt 0:02:53]} 16. Qxd4 {[%emt 0:01:
20]} Nc5 {[%emt 0:04:14]} 17. Rd1 {[%emt 0:11:16]} Qxd4 {[%emt 0:02:24]} 18.
exd4 {[%emt 0:11:09]} Ncd7 {[%emt 0:04:33]} 19. Bd3 {[%emt 0:06:52]} h6 {[%emt
0:03:23]} 20. Bf4 {[%emt 0:02:05]} Nd5 {[%emt 0:05:59]} 21. Nxd5 {[%emt 0:01:
28]} Bxd5 {[%emt 0:01:07]} 22. Kd2 {[%emt 0:03:49]} Nb8 {[%emt 0:13:35]} 23.
Rc1 {[%emt 0:12:39]} Nc6 {[%emt 0:00:17]} 24. Ke3 {[%emt 0:02:29]} g5 {[%emt 0:
15:00]} 25. Bg3 {[%emt 0:02:50]} f5 {[%emt 0:01:02]} 26. Be5 {[%emt 0:09:36]}
f4+ {[%emt 0:00:55]} 27. Ke2 {[%emt 0:00:32]} Nxe5 {[%emt 0:06:30]} 28. dxe5 {
[%emt 0:00:04]} Rac8 {[%emt 0:01:17]} 29. h4 {[%emt 0:05:01]} g4 {[%emt 0:02:
21]} 30. h5 {[%emt 0:04:56]} Rxc1 {[%emt 0:08:50]} 31. Rxc1 {[%emt 0:00:05]}
Rd8 {[%emt 0:01:03]} 32. Rc7 {[%emt 0:05:14]} gxf3+ {[%emt 0:01:50]} 33. gxf3 {
[%emt 0:00:05]} Bxf3+ {[%emt 0:03:43]} 34. Kxf3 {[%emt 0:00:04]} Rxd3+ {[%emt
0:00:04]} 35. Kxf4 {[%emt 0:00:03]} Rb3 {[%emt 0:04:51]} 36. Re7 {[%emt 0:01:
48]} Rxb2 {[%emt 0:00:05]} 37. Rxe6 {[%emt 0:00:01]} Rf2+ {[%emt 0:00:34]} 38.
Ke4 {[%emt 0:00:49]} Ra2 {[%emt 0:01:12]} 39. Rxh6 {[%emt 0:08:53]} Rxa3 {
[%emt 0:00:04]} 40. Rc6 {[%emt 0:00:00]} Kf7 {[%emt 0:00:00]} 41. h6 {[%emt 0:
05:06]} Ra1 {[%emt 0:14:33]} 42. e6+ {[%emt 0:15:37]} Kf6 {[%emt 0:04:57]} 43.
h7 {[%emt 0:04:41]} Re1+ {[%emt 0:04:35]} 44. Kf3 {[%emt 0:00:23]} Rh1 {[%emt
0:00:39]} 45. e7+ {[%emt 0:02:03]} Kxe7 {[%emt 0:02:24]} 46. Rc8 {[%emt 0:00:
25]} Rh3+ {[%emt 0:04:45]} 47. Ke4 {[%emt 0:01:23]} Rh4+ {[%emt 0:00:06]} 48.
Kd5 {[%emt 0:01:12]} Rh5+ {[%emt 0:00:13]} 49. Kc6 {[%emt 0:00:47]} Rh6+ {
[%emt 0:00:22]} 50. Kb7 {[%emt 0:00:04]} Rxh7 {[%emt 0:01:21]} 51. Rc7+ {[%emt
0:00:04]} Kd6 {[%emt 0:00:07]} 52. Rxh7 {[%emt 0:00:03]} Kc5 {[%emt 0:00:54]}
53. Rh5+ {[%emt 0:00:16]} Kc4 {[%emt 0:00:11]} 54. Ka6 {[%emt 0:00:15] Kd5} 1-0

[Event "ETCC Women 2013"]
[Site "Warsaw"]
[Date "2013.11.10"]
[Round "3"]
[White "Stefanova, Antoaneta"]
[Black "Kulon, Klaudia"]
[Result "1/2-1/2"]
[ECO "A49"]
[WhiteElo "2494"]
[BlackElo "2276"]
[PlyCount "104"]
[EventDate "2013.??.??"]
[EventCountry "POL"]
[WhiteTeam "Bulgaria"]
[BlackTeam "Poland"]
[WhiteTeamCountry "BUL"]
[BlackTeamCountry "POL"]
[TimeControl "40/5400+30:1800+30"]

1. d4 {[%emt 0:00:00]} Nf6 {[%emt 0:00:00]} 2. Nf3 {[%emt 0:00:00]} g6 {[%emt
0:00:00]} 3. g3 {[%emt 0:00:00]} Bg7 {[%emt 0:00:00]} 4. Bg2 {[%emt 0:00:03]}
O-O {[%emt 0:00:06]} 5. O-O {[%emt 0:00:06]} d6 {[%emt 0:00:05]} 6. a4 {[%emt
0:00:06]} a5 {[%emt 0:00:40]} 7. Nc3 {[%emt 0:02:37]} Nc6 {[%emt 0:02:32]} 8.
d5 {[%emt 0:07:40]} Nb4 {[%emt 0:01:50]} 9. e4 {[%emt 0:01:33]} e6 {[%emt 0:03:
37]} 10. Bf4 {[%emt 0:02:01]} exd5 {[%emt 0:03:42]} 11. exd5 {[%emt 0:00:06]}
Bf5 {[%emt 0:04:04]} 12. Nd4 {[%emt 0:01:26]} Bg4 {[%emt 0:00:13]} 13. Qd2 {
[%emt 0:03:19]} Qc8 {[%emt 0:08:32]} 14. Ndb5 {[%emt 0:03:05]} Bf5 {[%emt 0:02:
13]} 15. Rac1 {[%emt 0:12:37]} Re8 {[%emt 0:04:13]} 16. Rfe1 {[%emt 0:01:26]}
Qd7 {[%emt 0:04:59]} 17. Nd4 {[%emt 0:05:57]} Bh3 {[%emt 0:00:53]} 18. Bh1 {
[%emt 0:00:10]} Rxe1+ {[%emt 0:06:39]} 19. Rxe1 {[%emt 0:00:07]} Re8 {[%emt 0:
00:35]} 20. Rc1 {[%emt 0:06:17]} Ng4 {[%emt 0:07:01]} 21. Ncb5 {[%emt 0:08:01]}
Ne5 {[%emt 0:03:38]} 22. b3 {[%emt 0:03:25]} c6 {[%emt 0:02:14]} 23. Nc3 {
[%emt 0:05:17]} Ned3 {[%emt 0:06:45]} 24. cxd3 {[%emt 0:00:22]} Bxd4 {[%emt 0:
00:04]} 25. dxc6 {[%emt 0:00:40]} bxc6 {[%emt 0:00:04]} 26. Ne2 {[%emt 0:05:26]
} Bg7 {[%emt 0:03:33]} 27. Be3 {[%emt 0:00:47]} Qb7 {[%emt 0:05:59]} 28. Nf4 {
[%emt 0:09:14]} Bf5 {[%emt 0:01:00]} 29. h4 {[%emt 0:02:40]} Rc8 {[%emt 0:05:
20]} 30. Bf3 {[%emt 0:02:10]} h5 {[%emt 0:02:59]} 31. Be4 {[%emt 0:07:47]} Bd7
{[%emt 0:02:02]} 32. d4 {[%emt 0:03:17]} d5 {[%emt 0:00:56]} 33. Bb1 {[%emt 0:
00:52]} Bf8 {[%emt 0:04:45]} 34. Kh2 {[%emt 0:02:24]} Bg4 {[%emt 0:01:09]} 35.
Kg2 {[%emt 0:02:43]} Qd7 {[%emt 0:04:58]} 36. Nd3 {[%emt 0:00:11]} Nxd3 {[%emt
0:00:57]} 37. Bxd3 {[%emt 0:00:06]} Ba3 {[%emt 0:00:29]} 38. Rc2 {[%emt 0:03:
07]} Bb4 {[%emt 0:00:50]} 39. Qc1 {[%emt 0:00:35]} c5 {[%emt 0:01:40]} 40. f3 {
[%emt 0:00:00]} Bh3+ {[%emt 0:00:00]} 41. Kh2 {[%emt 0:01:59]} Bf5 {[%emt 0:03:
52]} 42. Bxf5 {[%emt 0:01:45]} Qxf5 {[%emt 0:00:13]} 43. dxc5 {[%emt 0:16:43]}
Qxf3 {[%emt 0:00:13]} 44. c6 {[%emt 0:03:01]} d4 {[%emt 0:07:10]} 45. Bxd4 {
[%emt 0:01:39]} Bd6 {[%emt 0:00:09]} 46. Qg5 {[%emt 0:04:53]} Qe4 {[%emt 0:07:
53]} 47. Rd2 {[%emt 0:02:03]} Rxc6 {[%emt 0:01:31]} 48. Qd8+ {[%emt 0:02:50]}
Bf8 {[%emt 0:00:03]} 49. Bf2 {[%emt 0:00:41]} Rc1 {[%emt 0:02:40]} 50. Rd1 {
[%emt 0:00:04]} Rc2 {[%emt 0:01:27]} 51. Rd2 {[%emt 0:00:02]} Rc1 {[%emt 0:02:
59]} 52. Rd1 {[%emt 0:00:01]} Rc2 {[%emt 0:00:41]} 1/2-1/2

[Event "ETCC Women 2013"]
[Site "Warsaw"]
[Date "2013.11.10"]
[Round "3"]
[White "Stoeri, Laura"]
[Black "Johannsdottir, Johanna Bjorg"]
[Result "1-0"]
[ECO "B39"]
[WhiteElo "2102"]
[BlackElo "1901"]
[PlyCount "101"]
[EventDate "2013.??.??"]
[EventCountry "POL"]
[WhiteTeam "Switzerland"]
[BlackTeam "Iceland"]
[WhiteTeamCountry "SUI"]
[BlackTeamCountry "ISL"]
[TimeControl "40/5400+30:1800+30"]

1. e4 {[%emt 0:00:00]} c5 {[%emt 0:00:00]} 2. Nf3 {[%emt 0:00:00]} g6 {[%emt 0:
00:00]} 3. d4 {[%emt 0:00:00]} cxd4 {[%emt 0:00:00]} 4. Nxd4 {[%emt 0:00:00]}
Nc6 {[%emt 0:00:14]} 5. c4 {[%emt 0:00:06]} Nf6 {[%emt 0:00:09]} 6. Nc3 {[%emt
0:00:38]} Bg7 {[%emt 0:00:09]} 7. Be3 {[%emt 0:00:07]} Ng4 {[%emt 0:00:10]} 8.
Qxg4 {[%emt 0:00:10]} Nxd4 {[%emt 0:00:05]} 9. Qd1 {[%emt 0:00:07]} Ne6 {[%emt
0:00:03]} 10. Rc1 {[%emt 0:00:26]} b6 {[%emt 0:00:19]} 11. Bd3 {[%emt 0:00:31]}
Bb7 {[%emt 0:00:18]} 12. Bb1 {[%emt 0:02:31]} Rc8 {[%emt 0:02:27]} 13. b3 {
[%emt 0:01:18]} O-O {[%emt 0:02:25]} 14. O-O {[%emt 0:00:19]} d6 {[%emt 0:00:
14]} 15. f4 {[%emt 0:09:48]} f5 {[%emt 0:04:15]} 16. exf5 {[%emt 0:05:25]} gxf5
{[%emt 0:00:06]} 17. g4 {[%emt 0:07:16]} Rf7 {[%emt 0:06:56]} 18. Bxf5 {[%emt
0:04:54]} Nc5 {[%emt 0:01:25]} 19. Qc2 {[%emt 0:38:44]} Bxc3 {[%emt 0:00:33]}
20. Qxc3 {[%emt 0:00:14]} e6 {[%emt 0:00:08]} 21. Bxc5 {[%emt 0:05:10]} exf5 {
[%emt 0:00:24]} 22. Ba3 {[%emt 0:01:57]} Rg7 {[%emt 0:00:14]} 23. g5 {[%emt 0:
01:39]} Qe8 {[%emt 0:02:32]} 24. Bb2 {[%emt 0:07:54]} Rcc7 {[%emt 0:00:25]} 25.
Rce1 {[%emt 0:02:05]} Qc6 {[%emt 0:00:21]} 26. Qg3 {[%emt 0:03:30]} Rg6 {[%emt
0:00:48]} 27. Re2 {[%emt 0:04:06]} Qc5+ {[%emt 0:02:25]} 28. Qf2 {[%emt 0:01:
26]} Qxf2+ {[%emt 0:01:32]} 29. Kxf2 {[%emt 0:01:38]} d5 {[%emt 0:00:14]} 30.
Re8+ {[%emt 0:01:10]} Kf7 {[%emt 0:00:08]} 31. Rh8 {[%emt 0:00:07]} Rd7 {[%emt
0:02:01]} 32. Rxh7+ {[%emt 0:00:21]} Ke8 {[%emt 0:00:06]} 33. Re1+ {[%emt 0:00:
55]} Kd8 {[%emt 0:00:03]} 34. Bf6+ {[%emt 0:01:15]} Kc7 {[%emt 0:00:24]} 35.
Rxd7+ {[%emt 0:00:54]} Kxd7 {[%emt 0:00:07]} 36. Re7+ {[%emt 0:00:20]} Kc8 {
[%emt 0:00:05]} 37. cxd5 {[%emt 0:00:11]} Bxd5 {[%emt 0:00:07]} 38. Rxa7 {
[%emt 0:00:36]} Rg8 {[%emt 0:00:08]} 39. Rh7 {[%emt 0:00:22]} Kb8 {[%emt 0:00:
17]} 40. h4 {[%emt 0:00:00]} Rc8 {[%emt 0:00:00]} 41. Be5+ {[%emt 0:04:58]} Ka8
{[%emt 0:00:36]} 42. Rh8 {[%emt 0:00:40]} Rxh8 {[%emt 0:00:06]} 43. Bxh8 {
[%emt 0:00:04]} Bf7 {[%emt 0:00:03]} 44. Ke3 {[%emt 0:00:55]} Kb7 {[%emt 0:00:
04]} 45. Kd4 {[%emt 0:00:08]} Kc6 {[%emt 0:00:27]} 46. Ke5 {[%emt 0:00:57]} Kd7
{[%emt 0:00:11]} 47. Kf6 {[%emt 0:00:32]} Ke8 {[%emt 0:00:10]} 48. g6 {[%emt 0:
00:15]} Bxg6 {[%emt 0:00:13]} 49. Kxg6 {[%emt 0:00:05]} Kf8 {[%emt 0:00:04]}
50. Bg7+ {[%emt 0:00:31]} Kg8 {[%emt 0:00:07]} 51. h5 {[%emt 0:00:13]} 1-0

[Event "ETCC Women 2013"]
[Site "Warsaw"]
[Date "2013.11.10"]
[Round "3"]
[White "Thorsteinsdottir, Hallgerdur"]
[Black "Heinatz, Dr. Gundula"]
[Result "1/2-1/2"]
[ECO "C04"]
[WhiteElo "1951"]
[BlackElo "2169"]
[PlyCount "116"]
[EventDate "2013.??.??"]
[EventCountry "POL"]
[WhiteTeam "Iceland"]
[BlackTeam "Switzerland"]
[WhiteTeamCountry "ISL"]
[BlackTeamCountry "SUI"]
[TimeControl "40/5400+30:1800+30"]

1. e4 {[%emt 0:00:00]} e6 {[%emt 0:00:00]} 2. d4 {[%emt 0:00:00]} d5 {[%emt 0:
00:00]} 3. Nd2 {[%emt 0:00:00]} Nc6 {[%emt 0:00:26]} 4. Ngf3 {[%emt 0:01:18]}
Nf6 {[%emt 0:00:22]} 5. e5 {[%emt 0:04:21]} Nd7 {[%emt 0:00:09]} 6. c3 {[%emt
0:00:55]} f6 {[%emt 0:03:01]} 7. exf6 {[%emt 0:00:45]} Nxf6 {[%emt 0:01:51]} 8.
Bd3 {[%emt 0:03:08]} Bd6 {[%emt 0:00:50]} 9. O-O {[%emt 0:03:13]} O-O {[%emt 0:
00:31]} 10. Re1 {[%emt 0:03:33]} Nh5 {[%emt 0:13:51]} 11. Ne5 {[%emt 0:13:39]}
Nf4 {[%emt 0:04:52]} 12. Ndf3 {[%emt 0:01:37]} Nxe5 {[%emt 0:06:53]} 13. Nxe5 {
[%emt 0:03:07]} Nxd3 {[%emt 0:04:26]} 14. Qxd3 {[%emt 0:00:45]} c5 {[%emt 0:02:
43]} 15. Qg3 {[%emt 0:07:41]} Rf5 {[%emt 0:11:20]} 16. f4 {[%emt 0:10:15]} cxd4
{[%emt 0:04:46]} 17. cxd4 {[%emt 0:00:11]} Bd7 {[%emt 0:11:10]} 18. Bd2 {[%emt
0:02:29]} Bxe5 {[%emt 0:04:54]} 19. fxe5 {[%emt 0:04:27]} Qb6 {[%emt 0:05:20]}
20. Bc3 {[%emt 0:03:10]} Bb5 {[%emt 0:03:47]} 21. h3 {[%emt 0:02:46]} Raf8 {
[%emt 0:00:53]} 22. Rad1 {[%emt 0:03:26]} Bc4 {[%emt 0:02:34]} 23. a3 {[%emt 0:
01:41]} a5 {[%emt 0:02:29]} 24. Qh4 {[%emt 0:04:36]} Qc7 {[%emt 0:03:03]} 25.
Re3 {[%emt 0:06:55]} Rf4 {[%emt 0:01:55]} 26. Qg3 {[%emt 0:01:45]} b6 {[%emt 0:
00:10]} 27. Rd2 {[%emt 0:10:35]} Qf7 {[%emt 0:00:36]} 28. Rf3 {[%emt 0:01:40]}
Rxf3 {[%emt 0:00:39]} 29. Qxf3 {[%emt 0:00:06]} Qxf3 {[%emt 0:00:48]} 30. gxf3
{[%emt 0:00:06]} Rxf3 {[%emt 0:00:07]} 31. Kg2 {[%emt 0:00:19]} Rf5 {[%emt 0:
02:42]} 32. Rf2 {[%emt 0:01:45]} Rg5+ {[%emt 0:01:11]} 33. Kh2 {[%emt 0:01:42]}
h6 {[%emt 0:01:00]} 34. Bd2 {[%emt 0:00:29]} Rh5 {[%emt 0:01:24]} 35. Kg3 {
[%emt 0:00:26]} Bd3 {[%emt 0:00:18]} 36. Rf3 {[%emt 0:01:43]} Bf5 {[%emt 0:00:
38]} 37. h4 {[%emt 0:02:03]} g5 {[%emt 0:00:19]} 38. hxg5 {[%emt 0:00:02]} hxg5
{[%emt 0:00:04]} 39. Rc3 {[%emt 0:01:44]} Rh3+ {[%emt 0:03:51]} 40. Kg2 {[%emt
0:00:00]} g4 {[%emt 0:00:00]} 41. Rxh3 {[%emt 0:01:33]} gxh3+ {[%emt 0:03:12]}
42. Kf2 {[%emt 0:06:13]} Kf7 {[%emt 0:00:08]} 43. Bf4 {[%emt 0:06:37]} Ke8 {
[%emt 0:02:48]} 44. Ke3 {[%emt 0:00:16]} Kd7 {[%emt 0:00:54]} 45. Kd2 {[%emt 0:
00:10]} Kc6 {[%emt 0:01:00]} 46. Kc3 {[%emt 0:00:20]} Kb5 {[%emt 0:00:35]} 47.
b3 {[%emt 0:00:49]} Bg4 {[%emt 0:06:01]} 48. Bh2 {[%emt 0:00:25]} Bd1 {[%emt 0:
01:22]} 49. Bg3 {[%emt 0:02:34]} Kc6 {[%emt 0:00:33]} 50. Bh2 {[%emt 0:00:26]}
Kd7 {[%emt 0:01:02]} 51. b4 {[%emt 0:00:48]} Bf3 {[%emt 0:05:08]} 52. bxa5 {
[%emt 0:01:02]} bxa5 {[%emt 0:00:02]} 53. Kd2 {[%emt 0:00:39]} Bg2 {[%emt 0:02:
03]} 54. Bg3 {[%emt 0:00:34]} Ke7 {[%emt 0:00:37]} 55. Ke3 {[%emt 0:00:23]} Kf7
{[%emt 0:00:38]} 56. Bh2 {[%emt 0:00:11]} Kg6 {[%emt 0:00:28]} 57. Bf4 {[%emt
0:00:13]} Kf5 {[%emt 0:00:35]} 58. Bh2 {[%emt 0:00:18]} Kg4 {[%emt 0:00:25] Ke4
} 1/2-1/2

[Event "ETCC Women 2013"]
[Site "Warsaw"]
[Date "2013.11.10"]
[Round "3"]
[White "Toma, Katarzyna"]
[Black "Kursova, Maria"]
[Result "0-1"]
[ECO "B47"]
[WhiteElo "2282"]
[BlackElo "2339"]
[PlyCount "60"]
[EventDate "2013.??.??"]
[EventCountry "POL"]
[WhiteTeam "Poland"]
[BlackTeam "Armenia"]
[WhiteTeamCountry "POL"]
[BlackTeamCountry "ARM"]
[TimeControl "40/5400+30:1800+30"]

1. e4 {[%emt 0:00:00]} c5 {[%emt 0:00:00]} 2. Nf3 {[%emt 0:00:00]} e6 {[%emt 0:
00:00]} 3. d4 {[%emt 0:00:00]} cxd4 {[%emt 0:00:00]} 4. Nxd4 {[%emt 0:00:00]}
Nc6 {[%emt 0:00:09]} 5. Nc3 {[%emt 0:00:00]} Qc7 {[%emt 0:00:15]} 6. Nxc6 {
[%emt 0:00:20]} bxc6 {[%emt 0:00:27]} 7. Bd3 {[%emt 0:00:07]} Nf6 {[%emt 0:01:
09]} 8. O-O {[%emt 0:00:18]} Be7 {[%emt 0:03:59]} 9. Qe2 {[%emt 0:00:50]} d5 {
[%emt 0:01:04]} 10. b3 {[%emt 0:03:04]} O-O {[%emt 0:00:40]} 11. Bb2 {[%emt 0:
00:15]} Bb7 {[%emt 0:00:44]} 12. f4 {[%emt 0:01:17]} Rfe8 {[%emt 0:04:09]} 13.
Kh1 {[%emt 0:00:54]} Rad8 {[%emt 0:24:24]} 14. Rf3 {[%emt 0:09:20]} g6 {[%emt
0:09:58]} 15. Raf1 {[%emt 0:06:38]} c5 {[%emt 0:06:20]} 16. Rh3 {[%emt 0:06:06]
} Bc6 {[%emt 0:14:45]} 17. e5 {[%emt 0:07:48]} Nd7 {[%emt 0:00:24]} 18. f5 {
[%emt 0:17:49]} exf5 {[%emt 0:03:25]} 19. e6 {[%emt 0:15:04]} Nf6 {[%emt 0:10:
15]} 20. exf7+ {[%emt 0:01:01]} Kxf7 {[%emt 0:00:03]} 21. Nb5 {[%emt 0:09:41]}
Qd7 {[%emt 0:05:08]} 22. Qe5 {[%emt 0:12:53]} Bxb5 {[%emt 0:10:29]} 23. Rxh7+ {
[%emt 0:00:05]} Kg8 {[%emt 0:00:33]} 24. Bxf5 {[%emt 0:04:33]} Qd6 {[%emt 0:00:
46]} 25. Qe1 {[%emt 0:03:04]} Bxf1 {[%emt 0:02:13]} 26. Rh6 {[%emt 0:00:50]}
Bf8 {[%emt 0:00:27]} 27. Rxg6+ {[%emt 0:00:09]} Bg7 {[%emt 0:00:23]} 28. Qxf1 {
[%emt 0:00:51]} d4 {[%emt 0:00:37]} 29. Bc1 {[%emt 0:00:23]} Qe5 {[%emt 0:00:
46]} 30. Bh6 {[%emt 0:00:52]} Qxf5 {[%emt 0:00:26]} 0-1

[Event "ETCC Women 2013"]
[Site "Warsaw"]
[Date "2013.11.10"]
[Round "3"]
[White "Van Weersel, Arlette"]
[Black "Tsolakidou, Stavroula"]
[Result "0-1"]
[ECO "B51"]
[WhiteElo "2180"]
[BlackElo "2117"]
[PlyCount "112"]
[EventDate "2013.??.??"]
[EventCountry "POL"]
[WhiteTeam "Netherlands"]
[BlackTeam "Greece"]
[WhiteTeamCountry "NED"]
[BlackTeamCountry "GRE"]
[TimeControl "40/5400+30:1800+30"]

1. e4 {[%emt 0:00:00]} c5 {[%emt 0:00:00]} 2. Nf3 {[%emt 0:00:00]} d6 {[%emt 0:
00:00]} 3. Bb5+ {[%emt 0:00:00]} Nd7 {[%emt 0:00:06]} 4. O-O {[%emt 0:00:00]}
Ngf6 {[%emt 0:00:13]} 5. Re1 {[%emt 0:00:10]} a6 {[%emt 0:00:48]} 6. Bf1 {
[%emt 0:00:14]} b6 {[%emt 0:01:45]} 7. c3 {[%emt 0:00:34]} Bb7 {[%emt 0:00:20]}
8. d3 {[%emt 0:00:41]} e6 {[%emt 0:03:03]} 9. Nbd2 {[%emt 0:03:25]} Be7 {[%emt
0:09:40]} 10. d4 {[%emt 0:05:36]} cxd4 {[%emt 0:01:11]} 11. cxd4 {[%emt 0:01:
08]} b5 {[%emt 0:02:16]} 12. b3 {[%emt 0:10:05]} O-O {[%emt 0:02:53]} 13. Bb2 {
[%emt 0:01:18]} Qb6 {[%emt 0:00:57]} 14. Bd3 {[%emt 0:06:15]} Rfd8 {[%emt 0:02:
30]} 15. Nf1 {[%emt 0:13:38]} Nf8 {[%emt 0:04:51]} 16. Ng3 {[%emt 0:09:40]} Ng6
{[%emt 0:07:08]} 17. Qd2 {[%emt 0:01:19]} Nd7 {[%emt 0:09:08]} 18. Rac1 {[%emt
0:09:40]} a5 {[%emt 0:02:07]} 19. a3 {[%emt 0:04:05]} e5 {[%emt 0:06:49]} 20.
Bb1 {[%emt 0:07:29]} b4 {[%emt 0:10:34]} 21. axb4 {[%emt 0:06:50]} axb4 {[%emt
0:00:10]} 22. Nf5 {[%emt 0:01:04]} Bf8 {[%emt 0:04:57]} 23. h4 {[%emt 0:00:51]}
d5 {[%emt 0:03:28]} 24. exd5 {[%emt 0:04:59]} Bxd5 {[%emt 0:00:32]} 25. Qe3 {
[%emt 0:01:16]} e4 {[%emt 0:11:04]} 26. Ng5 {[%emt 0:03:15]} Nf6 {[%emt 0:06:
20]} 27. h5 {[%emt 0:03:45]} Nxh5 {[%emt 0:01:28]} 28. Nxe4 {[%emt 0:01:13]}
Nhf4 {[%emt 0:01:37]} 29. f3 {[%emt 0:03:55]} Qe6 {[%emt 0:01:29]} 30. Nc5 {
[%emt 0:00:52]} Qf6 {[%emt 0:00:29]} 31. g3 {[%emt 0:00:54]} Nh3+ {[%emt 0:00:
53]} 32. Kh2 {[%emt 0:00:35]} Ng5 {[%emt 0:00:12]} 33. Ne4 {[%emt 0:00:29]}
Bxe4 {[%emt 0:00:40]} 34. fxe4 {[%emt 0:00:21]} Ne7 {[%emt 0:02:08]} 35. Nh4 {
[%emt 0:00:47]} h6 {[%emt 0:00:40]} 36. Rf1 {[%emt 0:00:16]} Qe6 {[%emt 0:00:
15]} 37. Rf2 {[%emt 0:01:03]} Nd5 {[%emt 0:00:32]} 38. Qd3 {[%emt 0:00:26]} Nf6
{[%emt 0:00:36]} 39. d5 {[%emt 0:00:47]} Ng4+ {[%emt 0:00:34]} 40. Kg1 {[%emt
0:00:00]} Nh3+ {[%emt 0:00:00]} 41. Kg2 {[%emt 0:00:39]} Nhxf2 {[%emt 0:01:43]}
42. Qd4 {[%emt 0:12:12]} Qa6 {[%emt 0:02:16]} 43. Re1 {[%emt 0:01:41]} Rac8 {
[%emt 0:03:50]} 44. Nf5 {[%emt 0:03:24]} f6 {[%emt 0:12:47]} 45. Qd2 {[%emt 0:
08:35]} Bc5 {[%emt 0:02:25]} 46. Nd4 {[%emt 0:02:59]} Ba7 {[%emt 0:11:32]} 47.
Re2 {[%emt 0:02:32]} Qb6 {[%emt 0:00:33]} 48. Re1 {[%emt 0:01:29]} Rc3 {[%emt
0:01:47]} 49. Nf5 {[%emt 0:00:40]} g6 {[%emt 0:02:34]} 50. Nxh6+ {[%emt 0:00:
30]} Kg7 {[%emt 0:00:23]} 51. Nxg4 {[%emt 0:01:13]} Nxg4 {[%emt 0:00:05]} 52.
Bxc3 {[%emt 0:00:33]} bxc3 {[%emt 0:00:06]} 53. Qf4 {[%emt 0:00:10]} Qf2+ {
[%emt 0:01:10]} 54. Qxf2 {[%emt 0:00:17]} Bxf2 {[%emt 0:00:05]} 55. Rc1 {[%emt
0:00:47]} Bd4 {[%emt 0:00:14]} 56. Bd3 {[%emt 0:00:42]} Rb8 {[%emt 0:00:38]}
0-1